fUSD/lending_fUSD_20240708
["ID","MTS","AMOUNT","RATE_DAILY","PERIOD"]
[331540674,1720469446221,-313.546916,0.00027,7]
[331540675,1720469446231,-230.637315,0.00027,7]
[331540676,1720469446241,-735.926346,0.00027,7]
[331540677,1720469446250,-735.926346,0.00027,7]
[331540678,1720469446260,-151.0,0.00027,7]
[331540679,1720469446275,-150.0,0.00027109,2]
[331540680,1720469446284,-353.3,0.00027159,2]
[331540681,1720469446295,-342.18,0.00027181,2]
[331540682,1720469446305,-2962.51966295,0.0002736,120]
[331540683,1720469446317,-151.0,0.00027397,7]
[331540684,1720469446327,-644.501335,0.00027397,7]
[331540685,1720469446336,-644.501335,0.00027397,7]
[331540686,1720469446346,-151.0,0.00027397,7]
[331540687,1720469446356,-343.263747,0.00027397,7]
[331540688,1720469446366,-151.0,0.00027397,7]
[331540689,1720469446375,-151.0,0.00027397,7]
[331540690,1720469446385,-198.096338,0.00027397,7]
[331540691,1720469446395,-198.096338,0.00027397,7]
[331540692,1720469446404,-938.43613,0.00027397,7]
[331540693,1720469446414,-938.43613,0.00027397,7]
[331540694,1720469446424,-1000.0,0.00027397,13]
[331540695,1720469446433,-1000.0,0.00027397,13]
[331540696,1720469446443,-1000.0,0.00027397,13]
[331540697,1720469446452,-1000.0,0.00027397,13]
[331540698,1720469446462,-1000.0,0.00027397,13]
[331540700,1720469446471,-1000.0,0.00027397,13]
[331540702,1720469446481,-1000.0,0.00027397,13]
[331540704,1720469446490,-1000.0,0.00027397,13]
[331540705,1720469446500,-1000.0,0.00027397,13]
[331540706,1720469446508,-1000.0,0.00027397,13]
[331540707,1720469446522,-1000.0,0.00027397,13]
[331540708,1720469446535,-1000.0,0.00027397,13]
[331540709,1720469446544,-1000.0,0.00027397,13]
[331540710,1720469446553,-1000.0,0.00027397,13]
[331540711,1720469446563,-1000.0,0.00027397,13]
[331540712,1720469446572,-1000.0,0.00027397,13]
[331540713,1720469446581,-1000.0,0.00027397,13]
[331540714,1720469446591,-1000.0,0.00027397,13]
[331540715,1720469446600,-1000.0,0.00027397,13]
[331540716,1720469446611,-1000.0,0.00027397,13]
[331540717,1720469446621,-1000.0,0.00027397,13]
[331540718,1720469446630,-1000.0,0.00027397,13]
[331540719,1720469446639,-1000.0,0.00027397,13]
[331540720,1720469446648,-1000.0,0.00027397,13]
[331540721,1720469446658,-1000.0,0.00027397,13]
[331540722,1720469446667,-1000.0,0.00027397,13]
[331540723,1720469446676,-1000.0,0.00027397,13]
[331540724,1720469446685,-1000.0,0.00027397,13]
[331540725,1720469446694,-1000.0,0.00027397,13]
[331540726,1720469446703,-151.0,0.00027397,7]
[331540727,1720469446712,-151.0,0.00027397,7]
[331540728,1720469446721,-151.0,0.00027397,7]
[331540729,1720469446731,-151.0,0.00027397,7]
[331540730,1720469446741,-151.0,0.00027397,7]
[331540731,1720469446759,-151.0,0.00027397,7]
[331540732,1720469446780,-151.0,0.00027397,7]
[331540733,1720469446800,-151.0,0.00027397,7]
[331540734,1720469446823,-151.0,0.00027397,7]
[331540735,1720469446845,-151.0,0.00027397,7]
[331540736,1720469446867,-151.0,0.00027397,7]
[331540737,1720469446888,-151.0,0.00027397,7]
[331540738,1720469446911,-11261.21,0.00027397,10]
[331540739,1720469446925,-150.0,0.00027564,2]
[331540740,1720469446935,-358.0,0.00027564,2]
[331540741,1720469446944,-449.0,0.00027564,2]
[331540742,1720469446954,-444.0,0.00027564,2]
[331540743,1720469446963,-625.603,0.00027564,2]
[331540744,1720469446973,-150.0,0.00027686,2]
[331540745,1720469446983,-2500.0,0.000277,2]
[331540746,1720469446992,-696.0,0.00027714,2]
[331540747,1720469447002,-234.56,0.00027714,2]
[331540748,1720469447013,-391.0,0.0002783,15]
[331540749,1720469447022,-343.068699,0.0002783,7]
[331540750,1720469447031,-343.068699,0.0002783,7]
[331540751,1720469447040,-243.498413,0.0002783,7]
[331540752,1720469447049,-243.498413,0.0002783,7]
[331540753,1720469447059,-173.72078,0.0002783,7]
[331540754,1720469447069,-151.0,0.0002785,7]
[331540755,1720469447078,-151.0,0.0002785,7]
[331540756,1720469447087,-297.644525,0.0002785,7]
[331540757,1720469447097,-297.644525,0.0002785,7]
[331540758,1720469447106,-288.613245,0.0002785,7]
[331540759,1720469447116,-288.613245,0.0002785,7]
[331540760,1720469447126,-337.778049,0.0002785,7]
[331540761,1720469447136,-337.778049,0.0002785,7]
[331540762,1720469447145,-206.0,0.00028,15]
[331540763,1720469447155,-186.0,0.00028,7]
[331540764,1720469447164,-1450.0,0.00028,2]
[331540765,1720469447173,-200.0,0.00028,2]
[331540766,1720469447183,-1630.59899186,0.00028186,2]
[331540767,1720469447192,-150.0,0.00028263,2]
[331540768,1720469447202,-151.0,0.00028269,2]
[331540769,1720469447211,-250.49088,0.00028269,2]
[331540770,1720469447221,-326.71042721,0.00028297,120]
[331540771,1720469447230,-2348.46149695,0.000283,2]
[331540772,1720469447240,-151.0,0.00028489,7]
[331540773,1720469447249,-848.86,0.00028541,2]
[331540774,1720469447259,-302.0,0.00028744,4]
[331540775,1720469447270,-150.0,0.00028839,2]
[331540776,1720469447279,-152.93,0.00028853,2]
[331540777,1720469447288,-7160.24323313,0.00029,30]
[331540778,1720469447297,-1000.0,0.00029,15]
[331540779,1720469447308,-186.213429,0.00029,7]
[331540780,1720469447318,-604.0,0.00029227,7]
[331540781,1720469447328,-1393.97791885,0.000294,2]
[331540782,1720469447338,-150.0,0.00029416,2]
[331540783,1720469447348,-342.18,0.00029445,2]
[331540784,1720469447357,-2172.65843249,0.0002954,15]
[331540785,1720469447367,-166.99392,0.00029718,4]
[331540786,1720469447376,-150.0,0.0002981,10]
[331540787,1720469447385,-150.0,0.0002981,10]
[331540788,1720469447394,-150.0,0.0002981,10]
[331540789,1720469447404,-150.0,0.0002981,10]
[331540790,1720469447413,-150.0,0.0002981,10]
[331540791,1720469447422,-150.0,0.0002981,10]
[331540792,1720469447432,-150.0,0.0002981,10]
[331540793,1720469447441,-150.0,0.0002981,10]
[331540794,1720469447450,-150.0,0.0002981,10]
[331540795,1720469447459,-150.0,0.0002981,10]
[331540796,1720469447468,-150.0,0.0002981,10]
[331540797,1720469447478,-150.0,0.0002981,10]
[331540798,1720469447487,-150.0,0.0002981,10]
[331540799,1720469447496,-150.0,0.0002981,10]
[331540800,1720469447506,-150.0,0.0002981,10]
[331540801,1720469447516,-150.0,0.0002981,10]
[331540802,1720469447525,-150.0,0.0002981,10]
[331540803,1720469447536,-150.0,0.0002981,10]
[331540804,1720469447548,-150.0,0.0002981,10]
[331540805,1720469447558,-150.0,0.0002981,10]
[331540806,1720469447567,-206.37298878,0.0002981,10]
[331540807,1720469447577,-417687.2077738,0.00029811,7]
[331540808,1720469447586,-151.0,0.00029811,7]
[331540809,1720469447595,-151.0,0.00029811,7]
[331540810,1720469447604,-151.0,0.00029811,7]
[331540811,1720469447614,-644.501335,0.00029811,7]
[331540812,1720469447624,-644.501335,0.00029811,7]
[331540813,1720469447633,-151.0,0.00029811,7]
[331540814,1720469447642,-343.263747,0.00029811,7]
[331540815,1720469447652,-151.0,0.00029811,7]
[331540816,1720469447661,-151.0,0.00029811,7]
[331540817,1720469447670,-224.62556,0.00029811,7]
[331540818,1720469447680,-343.068699,0.00029811,7]
[331540819,1720469447689,-343.068699,0.00029811,7]
[331540820,1720469447698,-243.498413,0.00029811,7]
[331540821,1720469447707,-243.498413,0.00029811,7]
[331540822,1720469447716,-151.0,0.00029811,7]
[331540823,1720469447725,-177.406546,0.00029811,7]
[331540824,1720469447735,-297.644525,0.00029811,7]
[331540825,1720469447744,-297.644525,0.00029811,7]
[331540826,1720469447753,-151.0,0.00029811,7]
[331540827,1720469447763,-288.613245,0.00029811,7]
[331540828,1720469447909,-288.613245,0.00029811,7]
[331540829,1720469447931,-524.979918,0.00029811,7]
[331540830,1720469447942,-193.545091,0.00029811,7]
[331540831,1720469447951,-193.545091,0.00029811,7]
[331540832,1720469447961,-337.778049,0.00029811,7]
[331540833,1720469447971,-337.778049,0.00029811,7]
[331540834,1720469447981,-524.979918,0.00029811,7]
[331540835,1720469447991,-194.788856,0.00029811,7]
[331540836,1720469448000,-151.0,0.00029811,7]
[331540837,1720469448010,-313.546916,0.00029811,7]
[331540838,1720469448021,-194.788856,0.00029811,7]
[331540839,1720469448031,-313.546916,0.00029811,7]
[331540840,1720469448041,-151.0,0.00029811,7]
[331540841,1720469448050,-735.926346,0.00029811,7]
[331540842,1720469448060,-735.926346,0.00029811,7]
[331540843,1720469448070,-151.0,0.00029811,7]
[331540844,1720469448080,-151.0,0.00029811,7]
[331540845,1720469448090,-198.096338,0.00029811,7]
[331540846,1720469448100,-198.096338,0.00029811,7]
[331540847,1720469448110,-938.43613,0.00029811,7]
[331540848,1720469448119,-938.43613,0.00029811,7]
[331540849,1720469448129,-353.3,0.00029927,4]
[331540850,1720469448138,-1208.0,0.00029967,30]
[331540851,1720469448148,-150.0,0.00029993,2]
[331540852,1720469448158,-998.02105211,0.0003,120]
[331540853,1720469448167,-153.9,0.0003,60]
[331540854,1720469448176,-381.58277596,0.0003,30]
[331540855,1720469448186,-624.3369494,0.0003,120]
[331540856,1720469448195,-2000.0,0.0003,120]
[331540857,1720469448204,-2000.0,0.0003,120]
[331540858,1720469448214,-2000.0,0.0003,120]
[331540859,1720469448224,-2000.0,0.0003,120]
[331540860,1720469448234,-2000.0,0.0003,120]
[331540861,1720469448243,-2000.0,0.0003,120]
[331540862,1720469448253,-2000.0,0.0003,120]
[331540863,1720469448264,-2000.0,0.0003,120]
[331540864,1720469448273,-1800.0,0.0003,31]
[331540865,1720469448282,-9537.22497104,0.0003,7]
[331540866,1720469448292,-5858.6148625,0.0003,7]
[331540867,1720469448302,-2000.0,0.0003,14]
[331540868,1720469448311,-1639.29913092,0.0003,30]
[331540869,1720469448320,-1000.0,0.0003,20]
[331540870,1720469448330,-1500.0,0.0003,2]
[331540871,1720469448340,-2273.50452348,0.0003,2]
[331540872,1720469448349,-200.0,0.0003,2]
[331540873,1720469448359,-2255.93379651,0.0003,2]
[331540874,1720469448369,-1635.41971053,0.0003,2]
[331540875,1720469448378,-461.68537,0.0003,10]
[331540876,1720469448388,-166.66666666,0.0003011,7]
[331540877,1720469448397,-151.0,0.00030137,7]
[331540878,1720469448407,-151.0,0.00030137,7]
[331540879,1720469448417,-151.0,0.00030137,7]
[331540880,1720469448427,-151.0,0.00030137,7]
[331540881,1720469448436,-151.0,0.00030137,7]
[331540882,1720469448446,-151.0,0.00030137,7]
[331540883,1720469448455,-151.0,0.00030137,7]
[331540884,1720469448464,-273.959014,0.00030137,7]
[331540885,1720469448474,-200.0,0.00030137,60]
[331540886,1720469448483,-238.59342196,0.0003015,120]
[331540887,1720469448493,-327.82768402,0.00030267,7]
[331540888,1720469448503,-2500.0,0.000304,2]
[331540889,1720469448513,-165.87341842,0.00030543,7]
[331540890,1720469448523,-441.0,0.00030564,2]
[331540891,1720469448536,-150.0,0.0003057,2]
[331540892,1720469448546,-548.0,0.00030613,30]
[331540893,1720469448555,-250.0,0.000308,30]
[331540894,1720469448565,-166.66666666,0.0003083,7]
[331540895,1720469448574,-500.0,0.0003085,3]
[331540896,1720469448583,-500.0,0.00030859,3]
[331540897,1720469448593,-500.0,0.00030859,3]
[331540898,1720469448602,-500.0,0.00030868,3]
[331540899,1720469448613,-500.0,0.00030868,3]
[331540900,1720469448623,-500.0,0.00030876,3]
[331540901,1720469448633,-500.0,0.00030877,3]
[331540902,1720469448642,-500.0,0.00030885,3]
[331540903,1720469448652,-500.0,0.00030886,3]
[331540904,1720469448661,-500.0,0.00030886,3]
[331540905,1720469448670,-500.0,0.00030894,3]
[331540906,1720469448679,-500.0,0.00030894,3]
[331540907,1720469448688,-500.0,0.00030894,3]
[331540908,1720469448697,-500.0,0.00030903,3]
[331540909,1720469448707,-500.0,0.00030903,3]
[331540910,1720469448716,-500.0,0.00030903,3]
[331540911,1720469448725,-500.0,0.00030912,3]
[331540912,1720469448735,-500.0,0.00030912,3]
[331540913,1720469448744,-500.0,0.00030912,3]
[331540914,1720469448753,-500.0,0.0003092,3]
[331540915,1720469448765,-500.0,0.00030921,3]
[331540916,1720469448777,-500.0,0.00030921,3]
[331540917,1720469448788,-150.91802999,0.00030926,7]
[331540918,1720469448798,-500.0,0.00030929,3]
[331540919,1720469448807,-500.0,0.0003093,3]
[331540920,1720469448816,-500.0,0.0003093,3]
[331540921,1720469448826,-500.0,0.00030938,3]
[331540922,1720469448836,-500.0,0.00030938,3]
[331540923,1720469448845,-500.0,0.00030938,3]
[331540924,1720469448855,-500.0,0.00030947,3]
[331540925,1720469448865,-500.0,0.00030947,3]
[331540926,1720469448875,-500.0,0.00030947,3]
[331540927,1720469448886,-500.0,0.00030956,3]
[331540928,1720469448896,-500.0,0.00030956,3]
[331540929,1720469448905,-500.0,0.00030956,3]
[331540930,1720469448916,-500.0,0.00030959,3]
[331540931,1720469448926,-500.0,0.00030964,3]
[331540932,1720469448937,-500.0,0.00030965,3]
[331540933,1720469448947,-500.0,0.00030965,3]
[331540934,1720469448957,-500.0,0.00030967,3]
[331540935,1720469448968,-500.0,0.00030973,3]
[331540936,1720469448979,-500.0,0.00030974,3]
[331540937,1720469448989,-500.0,0.00030974,3]
[331540938,1720469448999,-500.0,0.00030982,3]
[331540939,1720469449010,-500.0,0.00030982,3]
[331540940,1720469449028,-500.0,0.00030982,3]
[331540941,1720469449038,-500.0,0.00030982,3]
[331540942,1720469449048,-500.0,0.00030991,3]
[331540943,1720469449057,-500.0,0.00030991,3]
[331540944,1720469449067,-500.0,0.00030991,3]
[331540945,1720469449077,-500.0,0.00030991,3]
[331540946,1720469449087,-500.0,0.00031,3]
[331540947,1720469449096,-1841.23705919,0.00031,32]
[331540948,1720469449105,-500.0,0.00031,3]
[331540949,1720469449115,-500.0,0.00031,3]
[331540950,1720469449125,-500.0,0.00031,3]
[331540951,1720469449134,-208.77822868,0.00031,4]
[331540952,1720469449144,-500.0,0.00031008,3]
[331540953,1720469449153,-500.0,0.00031017,3]
[331540954,1720469449163,-500.0,0.00031026,3]
[331540955,1720469449172,-500.0,0.00031035,3]
[331540956,1720469449182,-500.0,0.00031044,3]
[331540957,1720469449191,-887.52009864,0.00031051,7]
[331540958,1720469449201,-500.0,0.00031052,3]
[331540959,1720469449211,-500.0,0.00031061,3]
[331540960,1720469449220,-500.0,0.0003107,3]
[331540961,1720469449230,-500.0,0.00031079,3]
[331540962,1720469449239,-500.0,0.00031088,3]
[331540963,1720469449248,-500.0,0.00031096,3]
[331540964,1720469449258,-500.0,0.00031105,3]
[331540965,1720469449275,-500.0,0.00031114,3]
[331540966,1720469449285,-150.0,0.00031147,2]
[331540967,1720469449295,-649.23523461,0.00031171,7]
[331540968,1720469449305,-1570.27742441,0.00031209,7]
[331540969,1720469449316,-155.51654115,0.0003122,7]
[331540970,1720469449325,-166.74908221,0.00031228,7]
[331540971,1720469449334,-159.8267339,0.000313,7]
[331540972,1720469449343,-602.99163805,0.000314,30]
[331540973,1720469449352,-887.52009864,0.00031427,7]
[331540974,1720469449362,-305.9623293,0.00031468,7]
[331540975,1720469449371,-607.50704076,0.000315,120]
[331540976,1720469449380,-840.0,0.000315,15]
[331540977,1720469449389,-327.82768402,0.00031573,7]
[331540978,1720469449398,-327.82768402,0.00031582,7]
[331540979,1720469449407,-172.15,0.00031644,91]
[331540980,1720469449416,-1570.27742441,0.00031685,7]
[331540981,1720469449426,-342.18,0.00031709,2]
[331540982,1720469449435,-150.0,0.00031723,2]
[331540983,1720469449444,-1630.59899186,0.00031757,2]
[331540984,1720469449453,-156.55611666,0.00031782,7]
[331540985,1720469449463,-166.54959611,0.00031838,7]
[331540986,1720469449473,-151.14628751,0.00031938,7]
[331540987,1720469449482,-111139.32962225,0.00032,15]
[331540988,1720469452021,-72621.08265711,0.00032,15]
[331540989,1720469452033,-464.58898707,0.00032,15]
[331540990,1720469452044,-6755.01184684,0.00032,15]
[331540991,1720469452056,-8057.67932279,0.00032,15]
[331540992,1720469452069,-3880.96957075,0.00032,15]
[331540993,1720469452127,-155.4020911,0.00013574,2]
[331540994,1720469452137,-1071.0,0.00017754,2]
[331540995,1720469452147,-1071.0,0.00020754,2]
[331540996,1720469452157,-2826.5479089,0.00032,15]
[331540997,1720469452168,-1111.183666,0.00032,15]
[331540998,1720469452180,-647.526547,0.00032,15]
[331540999,1720469452192,-739.70005,0.00032,15]
[331541000,1720469452203,-11129.60899707,0.00032,15]
[331541001,1720469452218,-379.35671075,0.00032,15]
[331541002,1720469452229,-3207.07153161,0.00032,15]
[331541003,1720469452276,-15738.65643401,0.00032,15]
[331541004,1720469452287,-3199.0973326,0.00032,15]
[331541005,1720469452299,-306.03178864,0.00032,15]
[331541006,1720469452310,-664.0,0.00032,15]
[331541007,1720469452321,-10066.03213401,0.00032,15]
[331541008,1720469452779,-909.40927408,0.00013574,2]
[331541009,1720469452791,-375.73492892,0.00013574,2]
[331541010,1720469452800,-326.48507108,0.00021918,2]
[331541011,1720469452811,-1476.49411621,0.00021918,2]
[331541012,1720469452823,-320.82081271,0.00021918,2]
[331541013,1720469452832,-1068.0,0.00023754,2]
[331541014,1720469452842,-70.37918729,0.00032,15]
[331541015,1720469452853,-36512.47496338,0.00032,15]
[331541016,1720469452864,-17808.97431362,0.00032,15]
[331541017,1720469452875,-10587.14206581,0.00032,15]
[331541018,1720469452886,-2847.59268996,0.00032,15]
[331541019,1720469452941,-151.0,0.000178,2]
[331541020,1720469452951,-151.0,0.000179,2]
[331541021,1720469452960,-151.0,0.00021918,2]
[331541022,1720469452970,-151.0,0.00021918,2]
[331541023,1720469452979,-151.0,0.00021918,2]
[331541024,1720469452989,-151.0,0.00021918,2]
[331541025,1720469452999,-10124.66102258,0.00032,15]
[331541026,1720469453010,-284.2125,0.00032,15]
[331541027,1720469453022,-504.6728537,0.00032,15]
[331541028,1720469453347,-2527.858,0.00032,15]
[331541029,1720469453358,-354.37716682,0.00032,15]
[331541030,1720469453374,-151.0,0.00021918,2]
[331541031,1720469453383,-784.08495585,0.00032,15]
[331541032,1720469453394,-32540.68456682,0.00032,15]
[331541033,1720469453405,-18666.72537751,0.00032,15]
[331541034,1720469453416,-4748.5911724,0.00032,15]
[331541035,1720469453427,-3299.06240855,0.00032,15]
[331541036,1720469453439,-431.96925012,0.00032,15]
[331541037,1720469453450,-877.554818,0.00032,15]
[331541038,1720469453465,-1562.11077063,0.00032,15]
[331541039,1720469453476,-1752.76552641,0.00032,15]
[331541040,1720469453487,-1211.81700269,0.00032,15]
[331541041,1720469453498,-501.70372601,0.00032,15]
[331541042,1720469453509,-2197.11899776,0.00032,15]
[331541043,1720469453522,-2945.11918834,0.00032,15]
[331541044,1720469453532,-414.36,0.00032,15]
[331541045,1720469453545,-880.21327524,0.00032,15]
[331541046,1720469453586,-1130.95989236,0.00032,15]
[331541047,1720469453598,-613.31437126,0.00032,15]
[331541048,1720469453609,-2247.44095932,0.00032,15]
[331541049,1720469453652,-65911.60136486,0.00032,15]
[331541050,1720469453663,-1404.87609537,0.00032,15]
[331541051,1720469453674,-420.62036438,0.00032,15]
[331541064,1720469628502,3000.000001,0.00011199,2]
[331541066,1720469633963,3932.43840998,0.00011199,2]
[331541067,1720469634582,6355.69976511,0.00011199,2]
[331541068,1720469669519,9236.41322618,0.00011199,2]
[331541069,1720469676997,-400.0,0.0002772,120]
[331541070,1720469690175,10034.4417985,0.00027,120]
[331541074,1720469736015,1013.16514783,0.00011199,2]
[331541076,1720469739128,1055.71054162,0.00011199,2]
[331541077,1720469747185,-1284.49060706,0.00025,30]
[331541078,1720469747279,-161.17,0.00027924,30]
[331541079,1720469747311,-454.33939294,0.0003,30]
[331541085,1720469791019,691.06526812,0.00011199,2]
[331541086,1720469796282,626.01775998,0.00011199,2]
[331541087,1720469801991,790.85425404,0.00011199,2]
[331541088,1720469817769,675.36193651,0.00011199,2]
[331541089,1720469822707,400.0,0.00031185,120]
[331541090,1720469823720,718.05959923,0.00011199,2]
[331541091,1720469827456,-100.0,0.00031185,120]
[331541093,1720469847834,242.5499319,0.00011199,2]
[331541095,1720469865076,174.02504748,0.00011199,2]
[331541096,1720469872171,544.84128592,0.00011199,2]
[331541098,1720469880813,366.15021277,0.00011199,2]
[331541100,1720469884696,208.81132406,0.00011199,2]
[331541101,1720469886737,277.52368199,0.00011199,2]
[331541102,1720469889159,276.25112655,0.00011199,2]
[331541103,1720469893979,155.0,0.00011199,2]
[331541104,1720469899207,248.13765487,0.00011199,2]
[331541105,1720469899979,155.0,0.00011199,2]
[331541106,1720469900013,157.15154402,0.00011199,2]
[331541107,1720469901482,269.73227948,0.00011199,2]
[331541108,1720469912644,378.18292746,0.00011199,2]
[331541109,1720469918075,155.0,0.00011199,2]
[331541110,1720469927131,227.24934482,0.00011199,2]
[331541111,1720469928371,123153.23773867,0.00011199,2]
[331541112,1720469931374,431.26485321,0.00011199,2]
[331541114,1720469981206,163.90445823,0.00011199,2]
[331541115,1720470021730,155.0,0.00011199,2]
[331541121,1720470112701,155.0,0.00011199,2]
[331541128,1720470230202,155.0,0.00011199,2]
[331541131,1720470257111,519.15175191,0.00011199,2]
[331541132,1720470260366,242.5499319,0.00011199,2]
[331541133,1720470309660,23286.60844876,0.00011199,2]
[331541138,1720470333197,155.0,0.00011199,2]
[331541139,1720470343952,12087.19034661,0.00011199,2]
[331541140,1720470356981,390.91214695,0.00011199,2]
[331541142,1720470386616,156.04927212,0.00011199,2]
[331541143,1720470387029,268.67520676,0.00011199,2]
[331541145,1720470426389,155.0,0.00011199,2]
[331541146,1720470426885,178.36010777,0.00011199,2]
[331541147,1720470431707,155.0,0.00011199,2]
[331541151,1720470455948,227.24934482,0.00011199,2]
[331541152,1720470461278,163.90445823,0.00011199,2]
[331541153,1720470461702,155.0,0.00011199,2]
[331541159,1720470531244,572.25853571,0.00011199,2]
[331541161,1720470563650,613.20687499,0.00011199,2]
[331541163,1720470568959,889.29811363,0.00011199,2]
[331541165,1720470576706,612.48530198,0.00011199,2]
[331541169,1720470594489,155.0,0.00011199,2]
[331541178,1720470602819,7476.76811966,0.00011199,2]
[331541225,1720470632685,-1160.310535,0.00011739,2]
[331541228,1720470632694,-197.61572727,0.00011899,2]
[331541231,1720470632703,-157.97753922,0.00012,2]
[331541234,1720470632712,-254.46240709,0.00012036,2]
[331541238,1720470632724,-269.12884661,0.00012036,2]
[331541241,1720470632735,-602.4599999,0.00012036,2]
[331541244,1720470632746,-331.9599993,0.00012036,2]
[331541247,1720470632756,-4734.77562216,0.00012036,2]
[331541250,1720470632767,-197.61572727,0.00012036,2]
[331541253,1720470632776,-197.61572727,0.00012173,2]
[331541256,1720470632785,-5606.142,0.00012201,2]
[331541259,1720470632795,-263.58284568,0.00012273,2]
[331541262,1720470632804,-170.32553758,0.00012302,2]
[331541265,1720470632816,-431.26485321,0.00012302,2]
[331541266,1720470632825,-1409.15,0.00013028,2]
[331541268,1720470632834,-321.67,0.00013028,2]
[331541270,1720470632843,-150.99,0.00013028,2]
[331541272,1720470632853,-906.27,0.00013128,2]
[331541274,1720470632862,-150.99,0.00013128,2]
[331541275,1720470632872,-208.79830054,0.00013472,2]
[331541276,1720470632881,-208.79830054,0.00013472,2]
[331541277,1720470632891,-155.0,0.00013516,2]
[331541279,1720470632900,-328.50066625,0.00013516,2]
[331541281,1720470632909,-227.24934482,0.00013516,2]
[331541283,1720470632920,-164.14392318,0.00013516,2]
[331541285,1720470632932,-155.0,0.00013543,2]
[331541287,1720470632942,-4054.072,0.000138,2]
[331541289,1720470632951,-4368.4282,0.000138,2]
[331541291,1720470632961,-255.34,0.00014183,2]
[331541293,1720470632971,-5445.38043239,0.00015,2]
[331541295,1720470632983,-9415.33628575,0.00015,2]
[331541298,1720470632994,-909.3594811,0.00015,2]
[331541300,1720470633007,-8891.33176897,0.00015,2]
[331541302,1720470633017,-327.50694654,0.00015,2]
[331541304,1720470633026,-500.0,0.00015252,2]
[331541306,1720470633035,-166.99,0.0001529,2]
[331541308,1720470633044,-855.81,0.00015301,2]
[331541310,1720470633054,-200.0,0.0001531,2]
[331541312,1720470633066,-235.83,0.00015339,2]
[331541314,1720470633076,-1489.97,0.00015356,2]
[331541316,1720470633085,-150.0,0.00015409,2]
[331541318,1720470633095,-6529.42068154,0.00015424,2]
[331541320,1720470633107,-6160.39373051,0.00015424,2]
[331541322,1720470633118,-548.34318324,0.00015424,2]
[331541324,1720470633129,-969.45652537,0.00015424,2]
[331541327,1720470633140,-3207.60087916,0.00015424,2]
[331541329,1720470633151,-1565.31339387,0.00015424,2]
[331541331,1720470633162,-4909.47160631,0.00015424,2]
[331541333,1720470633171,-6625.55882267,0.00015533,2]
[331541335,1720470633182,-1912.35117733,0.00015533,2]
[331541337,1720470633192,-310.61,0.00015597,2]
[331541339,1720470633201,-500.0,0.00015604,2]
[331541340,1720470633210,-239.64,0.00015604,2]
[331541341,1720470633220,-250.0,0.00015609,2]
[331541342,1720470633229,-761.3,0.00015643,2]
[331541343,1720470633239,-306.44,0.00015652,2]
[331541344,1720470633249,-151.35,0.00015757,2]
[331541345,1720470633259,-151.35,0.00015805,2]
[331541346,1720470633270,-500.0,0.00015828,3]
[331541347,1720470633279,-353.11,0.00015841,2]
[331541348,1720470633289,-151.35,0.00015854,2]
[331541349,1720470633298,-250.0,0.00015876,2]
[331541350,1720470633308,-151.35,0.00015902,2]
[331541351,1720470633320,-608.54,0.00015935,2]
[331541352,1720470633329,-151.35,0.0001595,2]
[331541353,1720470633338,-151.35,0.00015998,2]